[Event "*** SCC Grand Prix: Titled Tuesday Blitz"]
[Site "Chess.com"]
[Date "2020.08.11"]
[Round "9"]
[White "Mikasinski"]
[Black "kobemagic"]
[Result "0-1"]
[WhiteElo "2437"]
[BlackElo "2306"]
[TimeControl "180+1"]
[EndTime "11:48:08 PDT"]
[Termination "kobemagic won by resignation"]

1. e4 {[%clk 0:02:58.5]} 1... Nf6 {[%clk 0:02:59.9]} 2. e5 {[%clk 0:02:58.6]}
2... Nd5 {[%clk 0:02:59.8]} 3. c4 {[%clk 0:02:59.1]} 3... Nb6 {[%clk 0:02:59.6]}
4. d4 {[%clk 0:02:59.4]} 4... d6 {[%clk 0:02:59.9]} 5. exd6 {[%clk 0:02:59.1]}
5... exd6 {[%clk 0:03:00.2]} 6. Nc3 {[%clk 0:02:59.3]} 6... Nc6 {[%clk 0:02:58]}
7. b3 {[%clk 0:02:56]} 7... Be7 {[%clk 0:02:55.8]} 8. Be3 {[%clk 0:02:46.3]}
8... O-O {[%clk 0:02:48.4]} 9. Nf3 {[%clk 0:02:44.8]} 9... Bg4 {[%clk
0:02:47.5]} 10. h3 {[%clk 0:02:40.6]} 10... Bxf3 {[%clk 0:02:45.9]} 11. Qxf3
{[%clk 0:02:40.2]} 11... Bg5 {[%clk 0:02:46.5]} 12. Bd3 {[%clk 0:02:34.9]} 12...
Bxe3 {[%clk 0:02:38.1]} 13. fxe3 {[%clk 0:02:34.6]} 13... Qh4+ {[%clk
0:02:26.1]} 14. g3 {[%clk 0:02:33.7]} 14... Qh6 {[%clk 0:02:22.4]} 15. Kf2
{[%clk 0:02:17.1]} 15... Rae8 {[%clk 0:02:15.1]} 16. Rae1 {[%clk 0:02:14.4]}
16... Re7 {[%clk 0:02:13]} 17. Qf4 {[%clk 0:01:54.7]} 17... Qxf4+ {[%clk
0:02:08.6]} 18. gxf4 {[%clk 0:01:49.9]} 18... f5 {[%clk 0:02:05.3]} 19. d5
{[%clk 0:01:47.2]} 19... Nb4 {[%clk 0:02:01.2]} 20. Bb1 {[%clk 0:01:43.8]} 20...
a5 {[%clk 0:02:01.6]} 21. Nb5 {[%clk 0:01:37.1]} 21... Na6 {[%clk 0:02:00.4]}
22. Nd4 {[%clk 0:01:36.6]} 22... g6 {[%clk 0:02:00.4]} 23. h4 {[%clk 0:01:25.7]}
23... Nc5 {[%clk 0:01:53.8]} 24. h5 {[%clk 0:01:24.6]} 24... Nbd7 {[%clk
0:01:43.1]} 25. hxg6 {[%clk 0:01:23.1]} 25... hxg6 {[%clk 0:01:44]} 26. Rh6
{[%clk 0:01:20.5]} 26... Rg7 {[%clk 0:01:30.9]} 27. Rg1 {[%clk 0:01:05.2]} 27...
Nf6 {[%clk 0:01:19.3]} 28. Kf3 {[%clk 0:00:39.2]} 28... Ng4 {[%clk 0:01:16]} 29.
Rxg4 {[%clk 0:00:33]} 29... fxg4+ {[%clk 0:01:14.6]} 30. Kxg4 {[%clk 0:00:33.4]}
30... Re8 {[%clk 0:01:11.5]} 31. Bxg6 {[%clk 0:00:25.6]} 31... Rxe3 {[%clk
0:01:08.7]} 32. Nf5 {[%clk 0:00:25.6]} 32... Re1 {[%clk 0:00:59.8]} 33. Kf3
{[%clk 0:00:08.8]} 33... Rf1+ {[%clk 0:00:47.9]} 34. Ke3 {[%clk 0:00:03.3]}
34... Rg1 {[%clk 0:00:46.7]} 35. Nxg7 {[%clk 0:00:01.8]} 35... Kxg7 {[%clk
0:00:45.3]} 36. Rh7+ {[%clk 0:00:01.8]} 36... Kxg6 {[%clk 0:00:43.4]} 37. Rxc7
{[%clk 0:00:02.5]} 37... Kf6 {[%clk 0:00:36.3]} 38. Rc8 {[%clk 0:00:02.9]} 38...
Rg7 {[%clk 0:00:34.4]} 39. Rd8 {[%clk 0:00:02.7]} 39... Rd7 {[%clk 0:00:34]} 40.
Ra8 {[%clk 0:00:02.8]} 40... b6 {[%clk 0:00:26.5]} 41. Kd4 {[%clk 0:00:03.2]}
41... Re7 {[%clk 0:00:21.2]} 42. Rd8 {[%clk 0:00:03.2]} 42... Re4+ {[%clk
0:00:20.3]} 43. Kc3 {[%clk 0:00:03.4]} 43... Ke7 {[%clk 0:00:20.6]} 44. Rb8
{[%clk 0:00:03]} 44... Nd7 {[%clk 0:00:18.3]} 45. a3 {[%clk 0:00:02.1]} 45...
Rxf4 {[%clk 0:00:18.1]} 46. Rb7 {[%clk 0:00:02.1]} 46... Kd8 {[%clk 0:00:16.9]}
47. Ra7 {[%clk 0:00:01.9]} 47... Kc8 {[%clk 0:00:16.4]} 48. b4 {[%clk
0:00:02.4]} 48... axb4+ {[%clk 0:00:15.8]} 49. axb4 {[%clk 0:00:03]} 49... Rf3+
{[%clk 0:00:16.3]} 50. Kd4 {[%clk 0:00:03.3]} 50... Rf4+ {[%clk 0:00:14.1]} 51.
Kc3 {[%clk 0:00:03.4]} 51... Rf7 {[%clk 0:00:14]} 52. Kd4 {[%clk 0:00:02.9]}
52... Kb8 {[%clk 0:00:14.1]} 53. Ra6 {[%clk 0:00:02.7]} 53... Kb7 {[%clk
0:00:14.3]} 54. Ra2 {[%clk 0:00:02.7]} 54... Ne5 {[%clk 0:00:14.7]} 55. c5
{[%clk 0:00:02]} 55... Rf4+ {[%clk 0:00:14.6]} 56. Ke3 {[%clk 0:00:02.5]} 56...
Rxb4 {[%clk 0:00:13.4]} 57. c6+ {[%clk 0:00:01.9]} 57... Nxc6 {[%clk 0:00:12.9]}
58. dxc6+ {[%clk 0:00:02.1]} 58... Kxc6 {[%clk 0:00:13.8]} 59. Kd3 {[%clk
0:00:02.3]} 59... b5 {[%clk 0:00:13.4]} 60. Kc3 {[%clk 0:00:02.6]} 60... Kc5
{[%clk 0:00:12.6]} 61. Ra8 {[%clk 0:00:01.7]} 61... Rc4+ {[%clk 0:00:12.2]} 62.
Kb3 {[%clk 0:00:02.3]} 62... Rd4 {[%clk 0:00:11.8]} 63. Rc8+ {[%clk 0:00:02.4]}
63... Kb6 {[%clk 0:00:12.3]} 64. Rd8 {[%clk 0:00:02.4]} 64... d5 {[%clk
0:00:11.7]} 65. Kc3 {[%clk 0:00:02.6]} 65... Rc4+ {[%clk 0:00:11.5]} 66. Kd3
{[%clk 0:00:03.2]} 66... Rc5 {[%clk 0:00:10.5]} 67. Kd4 {[%clk 0:00:03.1]} 67...
Rc4+ {[%clk 0:00:09.6]} 68. Kxd5 {[%clk 0:00:03.5]} 68... Rc1 {[%clk 0:00:10.3]}
69. Rb8+ {[%clk 0:00:03.1]} 69... Ka5 {[%clk 0:00:10.5]} 70. Ra8+ {[%clk
0:00:03.6]} 70... Kb4 {[%clk 0:00:10.8]} 71. Rb8 {[%clk 0:00:03.6]} 71... Ka4
{[%clk 0:00:10.5]} 72. Ra8+ {[%clk 0:00:03.7]} 72... Kb3 {[%clk 0:00:10.3]} 73.
Kd4 {[%clk 0:00:02.3]} 73... b4 {[%clk 0:00:10.3]} 74. Kd3 {[%clk 0:00:02.7]}
74... Rd1+ {[%clk 0:00:10]} 75. Ke2 {[%clk 0:00:03]} 75... Rd7 {[%clk
0:00:10.3]} 76. Ra1 {[%clk 0:00:03.1]} 76... Kb2 {[%clk 0:00:09.7]} 77. Ra8
{[%clk 0:00:01.6]} 77... b3 {[%clk 0:00:09.7]} 78. Rb8 {[%clk 0:00:01.8]} 78...
Kc2 {[%clk 0:00:09.5]} 79. Rc8+ {[%clk 0:00:01.8]} 79... Kb1 {[%clk 0:00:09.8]}
80. Rb8 {[%clk 0:00:01.8]} 80... b2 {[%clk 0:00:10.1]} 81. Rb5 {[%clk
0:00:02.3]} 81... Rd4 {[%clk 0:00:10]} 82. Ke3 {[%clk 0:00:02.5]} 82... Rd8
{[%clk 0:00:09.1]} 83. Ke2 {[%clk 0:00:01.6]} 83... Rd7 {[%clk 0:00:07.8]} 84.
Ke3 {[%clk 0:00:01.8]} 84... Rd1 {[%clk 0:00:06.4]} 85. Ke2 {[%clk 0:00:02]}
85... Rc1 {[%clk 0:00:06.7]} 86. Ra5 {[%clk 0:00:02.4]} 86... Kc2 {[%clk
0:00:06.4]} 87. Rc5+ {[%clk 0:00:02.8]} 87... Kb3 {[%clk 0:00:06.2]} 88. Rb5+
{[%clk 0:00:03.4]} 88... Kc3 {[%clk 0:00:06.3]} 89. Rc5+ {[%clk 0:00:02.6]}
89... Kd4 {[%clk 0:00:06.7]} 90. Rb5 {[%clk 0:00:01.5]} 0-1

[Event "*** SCC Grand Prix: Titled Tuesday Blitz"]
[Site "Chess.com"]
[Date "2020.08.11"]
[Round "9"]
[White "bratkoo"]
[Black "MFBerna"]
[Result "0-1"]
[WhiteElo "2544"]
[BlackElo "2422"]
[TimeControl "180+1"]
[EndTime "11:50:18 PDT"]
[Termination "MFBerna won by checkmate"]

1. e4 {[%clk 0:03:00.9]} 1... c6 {[%clk 0:02:51.5]} 2. d4 {[%clk 0:02:59.9]}
2... d5 {[%clk 0:02:52.4]} 3. e5 {[%clk 0:03:00.4]} 3... c5 {[%clk 0:02:52.2]}
4. dxc5 {[%clk 0:02:58.5]} 4... e6 {[%clk 0:02:52.6]} 5. Nf3 {[%clk 0:02:57.4]}
5... Bxc5 {[%clk 0:02:52.5]} 6. Bd3 {[%clk 0:02:57.1]} 6... Ne7 {[%clk
0:02:52.1]} 7. O-O {[%clk 0:02:57]} 7... Nbc6 {[%clk 0:02:52]} 8. a3 {[%clk
0:02:56.8]} 8... Ng6 {[%clk 0:02:50.6]} 9. b4 {[%clk 0:02:53.9]} 9... Bb6 {[%clk
0:02:50.9]} 10. Bb2 {[%clk 0:02:53.7]} 10... O-O {[%clk 0:02:51.2]} 11. g3
{[%clk 0:02:50.2]} 11... a5 {[%clk 0:02:51.2]} 12. b5 {[%clk 0:02:49.3]} 12...
Nce7 {[%clk 0:02:51.4]} 13. h4 {[%clk 0:02:48.6]} 13... Re8 {[%clk 0:02:44]} 14.
h5 {[%clk 0:02:47.5]} 14... Nf8 {[%clk 0:02:44.5]} 15. Nbd2 {[%clk 0:02:41]}
15... Bd7 {[%clk 0:02:43.7]} 16. Nb3 {[%clk 0:02:39.7]} 16... Rc8 {[%clk
0:02:39.3]} 17. a4 {[%clk 0:02:36.9]} 17... Nf5 {[%clk 0:02:33.5]} 18. Qd2
{[%clk 0:02:22]} 18... Nxg3 {[%clk 0:02:31.1]} 19. Rfe1 {[%clk 0:02:17.1]} 19...
Nxh5 {[%clk 0:02:25]} 20. Kf1 {[%clk 0:02:16.4]} 20... Ng6 {[%clk 0:02:21.6]}
21. Bxg6 {[%clk 0:02:06.6]} 21... fxg6 {[%clk 0:02:19.8]} 22. Ke2 {[%clk
0:01:54]} 22... Rf8 {[%clk 0:02:15.8]} 23. Rh1 {[%clk 0:01:53.9]} 23... Nf4+
{[%clk 0:02:04]} 24. Kd1 {[%clk 0:01:53.8]} 24... h6 {[%clk 0:01:57.2]} 25. Nfd4
{[%clk 0:01:51.9]} 25... g5 {[%clk 0:01:49]} 26. Kc1 {[%clk 0:01:48.4]} 26...
Qc7 {[%clk 0:01:47.8]} 27. Kb1 {[%clk 0:01:48]} 27... Qxe5 {[%clk 0:01:20]} 28.
Ka2 {[%clk 0:01:44.8]} 28... Qc7 {[%clk 0:01:15.4]} 29. Rae1 {[%clk 0:01:44.5]}
29... Qc4 {[%clk 0:01:12]} 30. Kb1 {[%clk 0:01:41.4]} 30... Qxa4 {[%clk
0:01:08.3]} 31. Nf3 {[%clk 0:01:31.9]} 31... Qxb5 {[%clk 0:00:57]} 32. Ne5
{[%clk 0:01:29.6]} 32... Be8 {[%clk 0:00:51.3]} 33. Nd4 {[%clk 0:01:24.2]} 33...
Qc5 {[%clk 0:00:36]} 34. Nd3 {[%clk 0:01:19.5]} 34... Qd6 {[%clk 0:00:31.3]} 35.
Nxf4 {[%clk 0:01:18.8]} 35... Rxf4 {[%clk 0:00:29.3]} 36. Rxe6 {[%clk
0:01:13.5]} 36... Rxd4 {[%clk 0:00:25.3]} 37. Qxd4 {[%clk 0:01:13.2]} 37... Bxd4
{[%clk 0:00:23.2]} 38. Rxd6 {[%clk 0:01:13.6]} 38... Bxb2 {[%clk 0:00:19.2]} 39.
Kxb2 {[%clk 0:01:14.5]} 39... Bc6 {[%clk 0:00:15.7]} 40. Re1 {[%clk 0:01:14.3]}
40... Rc7 {[%clk 0:00:15.4]} 41. Kc3 {[%clk 0:01:10.4]} 41... Rf7 {[%clk
0:00:15.6]} 42. Re2 {[%clk 0:01:09.6]} 42... Rf3+ {[%clk 0:00:15.5]} 43. Kd4
{[%clk 0:01:09.7]} 43... a4 {[%clk 0:00:15.8]} 44. c3 {[%clk 0:01:09.2]} 44...
h5 {[%clk 0:00:13.6]} 45. Rg6 {[%clk 0:01:08.8]} 45... Rf4+ {[%clk 0:00:11.8]}
46. Kc5 {[%clk 0:01:05.9]} 46... g4 {[%clk 0:00:08.8]} 47. Re7 {[%clk
0:01:05.4]} 47... Rf7 {[%clk 0:00:08.6]} 48. Re5 {[%clk 0:01:03.3]} 48... Rxf2
{[%clk 0:00:07.3]} 49. Rxh5 {[%clk 0:01:03.3]} 49... Be8 {[%clk 0:00:05.8]} 50.
Rxg7+ {[%clk 0:00:55.6]} 50... Kxg7 {[%clk 0:00:05.8]} 51. Rg5+ {[%clk
0:00:56.5]} 51... Bg6 {[%clk 0:00:05.5]} 52. Rxg4 {[%clk 0:00:56.7]} 52... Rc2
{[%clk 0:00:04.5]} 53. Rxa4 {[%clk 0:00:56.3]} 53... Rxc3+ {[%clk 0:00:04.2]}
54. Kxd5 {[%clk 0:00:56.8]} 54... Rc6 {[%clk 0:00:04.1]} 55. Rb4 {[%clk
0:00:56.5]} 55... Rc7 {[%clk 0:00:04.2]} 56. Kd6 {[%clk 0:00:56.4]} 56... Rf7
{[%clk 0:00:04.6]} 57. Kc5 {[%clk 0:00:56.5]} 57... Bf5 {[%clk 0:00:04.6]} 58.
Kb6 {[%clk 0:00:56.7]} 58... Be6 {[%clk 0:00:04.6]} 59. Rb5 {[%clk 0:00:56.9]}
59... Kg6 {[%clk 0:00:03.3]} 60. Rc5 {[%clk 0:00:56.8]} 60... Bf5 {[%clk
0:00:03.4]} 61. Rc4 {[%clk 0:00:55]} 61... Kg5 {[%clk 0:00:03.5]} 62. Rc5 {[%clk
0:00:55.3]} 62... Kf4 {[%clk 0:00:03.2]} 63. Ka7 {[%clk 0:00:52.3]} 63... Be4
{[%clk 0:00:03.3]} 64. Rb5 {[%clk 0:00:52]} 64... Bc6 {[%clk 0:00:03.5]} 65. Rb6
{[%clk 0:00:52.4]} 65... Ke5 {[%clk 0:00:03.8]} 66. Rb4 {[%clk 0:00:52.6]} 66...
Kd6 {[%clk 0:00:04]} 67. Kb6 {[%clk 0:00:52.9]} 67... Rf5 {[%clk 0:00:03.7]} 68.
Rd4+ {[%clk 0:00:53.3]} 68... Rd5 {[%clk 0:00:03.4]} 69. Rb4 {[%clk 0:00:52.7]}
69... Rd3 {[%clk 0:00:03.9]} 70. Rb2 {[%clk 0:00:52.1]} 70... Kd5 {[%clk
0:00:04.2]} 71. Rb4 {[%clk 0:00:52]} 71... Rd4 {[%clk 0:00:04.1]} 72. Rb2 {[%clk
0:00:52.1]} 72... Kc4 {[%clk 0:00:04.7]} 73. Rc2+ {[%clk 0:00:52.5]} 73... Kd3
{[%clk 0:00:04.6]} 74. Rb2 {[%clk 0:00:52.6]} 74... Kc3 {[%clk 0:00:05.2]} 75.
Rh2 {[%clk 0:00:45.5]} 75... Rb4+ {[%clk 0:00:05.7]} 76. Kc5 {[%clk 0:00:45.9]}
76... Rb5+ {[%clk 0:00:06.2]} 77. Kd6 {[%clk 0:00:45.8]} 77... Kb4 {[%clk
0:00:05.9]} 78. Kc7 {[%clk 0:00:45.7]} 78... Kc5 {[%clk 0:00:05.2]} 79. Rc2+
{[%clk 0:00:45.2]} 79... Kb4 {[%clk 0:00:05.4]} 80. Rb2+ {[%clk 0:00:45.3]}
80... Kc5 {[%clk 0:00:04.8]} 81. Rc2+ {[%clk 0:00:45.6]} 81... Kd5 {[%clk
0:00:05]} 82. Rd2+ {[%clk 0:00:45.6]} 82... Ke6 {[%clk 0:00:04.6]} 83. Rd1
{[%clk 0:00:43.3]} 83... Be4 {[%clk 0:00:04.1]} 84. Re1 {[%clk 0:00:43.4]} 84...
Ke5 {[%clk 0:00:03.8]} 85. Rc1 {[%clk 0:00:43.3]} 85... Rb2 {[%clk 0:00:03.6]}
86. Rc5+ {[%clk 0:00:42.4]} 86... Kd4 {[%clk 0:00:03.3]} 87. Rc1 {[%clk
0:00:42.6]} 87... b5 {[%clk 0:00:03.4]} 88. Kb6 {[%clk 0:00:43]} 88... b4 {[%clk
0:00:02.9]} 89. Kb5 {[%clk 0:00:43.3]} 89... b3 {[%clk 0:00:03.2]} 90. Kb4
{[%clk 0:00:43.5]} 90... Bc2 {[%clk 0:00:03.5]} 91. Rh1 {[%clk 0:00:41]} 91...
Ra2 {[%clk 0:00:03.8]} 92. Rh4+ {[%clk 0:00:40.7]} 92... Kd3 {[%clk 0:00:04.3]}
93. Rh3+ {[%clk 0:00:41.1]} 93... Kd2 {[%clk 0:00:04.8]} 94. Rh2+ {[%clk
0:00:41.3]} 94... Kc1 {[%clk 0:00:05.2]} 95. Kc3 {[%clk 0:00:41.1]} 95... Kd1
{[%clk 0:00:02.9]} 96. Rh1+ {[%clk 0:00:39.4]} 96... Ke2 {[%clk 0:00:02.9]} 97.
Rh2+ {[%clk 0:00:39.9]} 97... Ke3 {[%clk 0:00:03.4]} 98. Rh3+ {[%clk 0:00:40.5]}
98... Ke4 {[%clk 0:00:04]} 99. Rh4+ {[%clk 0:00:41]} 99... Ke5 {[%clk
0:00:04.4]} 100. Rh5+ {[%clk 0:00:41.5]} 100... Ke6 {[%clk 0:00:04.6]} 101. Rh6+
{[%clk 0:00:42]} 101... Ke7 {[%clk 0:00:04.6]} 102. Rb6 {[%clk 0:00:41.8]}
102... Ra4 {[%clk 0:00:03.3]} 103. Kb2 {[%clk 0:00:41.8]} 103... Re4 {[%clk
0:00:02.6]} 104. Rh6 {[%clk 0:00:40.1]} 104... Re6 {[%clk 0:00:02.7]} 105. Rh3
{[%clk 0:00:39]} 105... Kd6 {[%clk 0:00:02.8]} 106. Rc3 {[%clk 0:00:39.6]}
106... Kd5 {[%clk 0:00:03]} 107. Rc8 {[%clk 0:00:39.3]} 107... Re1 {[%clk
0:00:02.4]} 108. Rd8+ {[%clk 0:00:39.5]} 108... Kc4 {[%clk 0:00:02.2]} 109. Rc8+
{[%clk 0:00:39.9]} 109... Kd3 {[%clk 0:00:02.3]} 110. Rd8+ {[%clk 0:00:40.3]}
110... Ke3 {[%clk 0:00:02.8]} 111. Re8+ {[%clk 0:00:40.2]} 111... Kd2 {[%clk
0:00:02.7]} 112. Rd8+ {[%clk 0:00:40.5]} 112... Ke2 {[%clk 0:00:02.6]} 113. Re8+
{[%clk 0:00:40.8]} 113... Kd2 {[%clk 0:00:02.4]} 114. Rd8+ {[%clk 0:00:41]}
114... Ke3 {[%clk 0:00:02.4]} 115. Re8+ {[%clk 0:00:41.3]} 115... Kf2 {[%clk
0:00:03]} 116. Rf8+ {[%clk 0:00:41.4]} 116... Kg3 {[%clk 0:00:03.4]} 117. Rg8+
{[%clk 0:00:41.8]} 117... Kf4 {[%clk 0:00:03.9]} 118. Rf8+ {[%clk 0:00:42.2]}
118... Kg5 {[%clk 0:00:03.6]} 119. Rg8+ {[%clk 0:00:42.7]} 119... Kf6 {[%clk
0:00:03.4]} 120. Rf8+ {[%clk 0:00:43.2]} 120... Ke7 {[%clk 0:00:03.8]} 121. Rf2
{[%clk 0:00:41.5]} 121... Rb1+ {[%clk 0:00:03.5]} 122. Kc3 {[%clk 0:00:41.3]}
122... Bd1 {[%clk 0:00:02.9]} 123. Rd2 {[%clk 0:00:34]} 123... Rc1+ {[%clk
0:00:02.3]} 124. Kb4 {[%clk 0:00:33]} 124... Rb1 {[%clk 0:00:01.7]} 125. Kc3
{[%clk 0:00:32.4]} 125... Ke6 {[%clk 0:00:01.8]} 126. Rd4 {[%clk 0:00:29.3]}
126... Ke5 {[%clk 0:00:02]} 127. Rb4 {[%clk 0:00:28.6]} 127... Rc1+ {[%clk
0:00:02.2]} 128. Kd2 {[%clk 0:00:29]} 128... Rb1 {[%clk 0:00:02.3]} 129. Kc3
{[%clk 0:00:29.2]} 129... Kd5 {[%clk 0:00:02.7]} 130. Rb5+ {[%clk 0:00:28.8]}
130... Kc6 {[%clk 0:00:02.6]} 131. Rg5 {[%clk 0:00:26.2]} 131... Bc2 {[%clk
0:00:02.7]} 132. Rg2 {[%clk 0:00:24.7]} 132... Rd1 {[%clk 0:00:02.4]} 133. Kb2
{[%clk 0:00:24.4]} 133... Rb1+ {[%clk 0:00:02.3]} 134. Kc3 {[%clk 0:00:24.3]}
134... Kb5 {[%clk 0:00:02.7]} 135. Rg5+ {[%clk 0:00:23.6]} 135... Ka4 {[%clk
0:00:02.6]} 136. Rg4+ {[%clk 0:00:23.6]} 136... Ka3 {[%clk 0:00:02.6]} 137. Rg8
{[%clk 0:00:23.2]} 137... b2 {[%clk 0:00:02.4]} 138. Ra8+ {[%clk 0:00:23]}
138... Ba4 {[%clk 0:00:02.8]} 139. Rb8 {[%clk 0:00:19.3]} 139... Rc1+ {[%clk
0:00:02.9]} 140. Kd2 {[%clk 0:00:19.1]} 140... b1=Q {[%clk 0:00:02.1]} 141. Rxb1
{[%clk 0:00:19.6]} 141... Rxb1 {[%clk 0:00:02.3]} 142. Ke3 {[%clk 0:00:20.5]}
142... Rb2 {[%clk 0:00:03.2]} 143. Ke4 {[%clk 0:00:21.4]} 143... Bb3 {[%clk
0:00:04.1]} 144. Kd4 {[%clk 0:00:22.3]} 144... Kb4 {[%clk 0:00:05]} 145. Ke3
{[%clk 0:00:21.8]} 145... Rc2 {[%clk 0:00:05.9]} 146. Kf3 {[%clk 0:00:22.7]}
146... Rc3+ {[%clk 0:00:06.8]} 147. Kf4 {[%clk 0:00:23.6]} 147... Bc2 {[%clk
0:00:07.3]} 148. Ke5 {[%clk 0:00:24.5]} 148... Kc4 {[%clk 0:00:07.9]} 149. Ke6
{[%clk 0:00:24.8]} 149... Rd3 {[%clk 0:00:08.5]} 150. Ke5 {[%clk 0:00:25]}
150... Rd4 {[%clk 0:00:08.9]} 151. Kf6 {[%clk 0:00:24.4]} 151... Rd5 {[%clk
0:00:09.3]} 152. Ke6 {[%clk 0:00:24.6]} 152... Kc5 {[%clk 0:00:09.8]} 153. Kf6
{[%clk 0:00:25.5]} 153... Kd6 {[%clk 0:00:10.1]} 154. Kf7 {[%clk 0:00:25.5]}
154... Rf5+ {[%clk 0:00:10.1]} 155. Kg7 {[%clk 0:00:25.7]} 155... Ke6 {[%clk
0:00:09.8]} 156. Kh8 {[%clk 0:00:26.6]} 156... Kf6 {[%clk 0:00:08.5]} 157. Kg8
{[%clk 0:00:26.7]} 157... Rh5 {[%clk 0:00:08.3]} 158. Kf8 {[%clk 0:00:26.5]}
158... Rh8# {[%clk 0:00:08.8]} 0-1

[Event "*** SCC Grand Prix: Titled Tuesday Blitz"]
[Site "Chess.com"]
[Date "2020.08.11"]
[Round "10"]
[White "Gvetadze"]
[Black "Panterov"]
[Result "1-0"]
[WhiteElo "2410"]
[BlackElo "2215"]
[TimeControl "180+1"]
[EndTime "11:52:07 PDT"]
[Termination "Gvetadze won by resignation"]

1. Nf3 {[%clk 0:03:00.9]} 1... Nf6 {[%clk 0:02:59.2]} 2. g3 {[%clk 0:03:01.8]}
2... g6 {[%clk 0:02:59.1]} 3. Bg2 {[%clk 0:03:02.4]} 3... Bg7 {[%clk 0:02:59.8]}
4. O-O {[%clk 0:03:03]} 4... O-O {[%clk 0:03:00.5]} 5. d3 {[%clk 0:03:03.9]}
5... d5 {[%clk 0:03:00.4]} 6. Nbd2 {[%clk 0:03:03.5]} 6... c6 {[%clk 0:03:00.5]}
7. e4 {[%clk 0:03:03.7]} 7... Bg4 {[%clk 0:03:00.1]} 8. h3 {[%clk 0:03:03.5]}
8... Bxf3 {[%clk 0:02:59.9]} 9. Qxf3 {[%clk 0:03:04.4]} 9... Nbd7 {[%clk
0:02:58.9]} 10. Qe2 {[%clk 0:03:04.5]} 10... Re8 {[%clk 0:02:52]} 11. e5 {[%clk
0:03:04]} 11... Nh5 {[%clk 0:02:49.1]} 12. Nf3 {[%clk 0:02:58.6]} 12... Bh8
{[%clk 0:02:31.7]} 13. e6 {[%clk 0:02:57.4]} 13... Ndf6 {[%clk 0:02:23.4]} 14.
exf7+ {[%clk 0:02:56.3]} 14... Kxf7 {[%clk 0:02:23.5]} 15. Ng5+ {[%clk 0:02:56]}
15... Kf8 {[%clk 0:02:16.5]} 1-0

[Event "*** SCC Grand Prix: Titled Tuesday Blitz"]
[Site "Chess.com"]
[Date "2020.08.11"]
[Round "10"]
[White "szachuspl"]
[Black "MasterSonnevanck23"]
[Result "0-1"]
[WhiteElo "2494"]
[BlackElo "2363"]
[TimeControl "180+1"]
[EndTime "11:52:54 PDT"]
[Termination "MasterSonnevanck23 won by resignation"]

1. d4 {[%clk 0:03:00.9]} 1... d6 {[%clk 0:02:55.8]} 2. e4 {[%clk 0:02:59.8]}
2... Nf6 {[%clk 0:02:54.3]} 3. Nc3 {[%clk 0:02:59.6]} 3... g6 {[%clk 0:02:54.1]}
4. f3 {[%clk 0:02:59.5]} 4... Bg7 {[%clk 0:02:53.2]} 5. Be3 {[%clk 0:02:59.9]}
5... O-O {[%clk 0:02:53.1]} 6. Qd2 {[%clk 0:03:00.3]} 6... e5 {[%clk 0:02:51.1]}
7. d5 {[%clk 0:02:59.6]} 7... c6 {[%clk 0:02:49.1]} 8. O-O-O {[%clk 0:02:59.5]}
8... cxd5 {[%clk 0:02:47]} 9. Nxd5 {[%clk 0:02:59.2]} 9... Nxd5 {[%clk
0:02:44.8]} 10. Qxd5 {[%clk 0:02:58.9]} 10... Nc6 {[%clk 0:02:40.9]} 11. Qxd6
{[%clk 0:02:50.7]} 11... Qa5 {[%clk 0:02:35.5]} 12. Bc4 {[%clk 0:02:50.1]} 12...
Rd8 {[%clk 0:02:02]} 13. Qc5 {[%clk 0:02:47.9]} 13... Qxc5 {[%clk 0:02:01]} 14.
Bxc5 {[%clk 0:02:47.4]} 14... Bh6+ {[%clk 0:02:00.9]} 0-1

[Event "*** SCC Grand Prix: Titled Tuesday Blitz"]
[Site "Chess.com"]
[Date "2020.08.11"]
[Round "10"]
[White "SergeyKarjakin"]
[Black "Alexsur1981"]
[Result "1-0"]
[WhiteElo "2972"]
[BlackElo "2621"]
[TimeControl "180+1"]
[EndTime "11:53:00 PDT"]
[Termination "SergeyKarjakin won by resignation"]

1. b3 {[%clk 0:03:00.9]} 1... Nf6 {[%clk 0:02:57.2]} 2. Bb2 {[%clk 0:03:01.8]}
2... g6 {[%clk 0:02:57.8]} 3. g3 {[%clk 0:02:59.5]} 3... Bg7 {[%clk 0:02:57.9]}
4. Bg2 {[%clk 0:03:00.2]} 4... O-O {[%clk 0:02:58.5]} 5. Nf3 {[%clk 0:03:00.5]}
5... c5 {[%clk 0:02:54.6]} 6. c4 {[%clk 0:02:59.6]} 6... Nc6 {[%clk 0:02:53.9]}
7. O-O {[%clk 0:02:59.5]} 7... b6 {[%clk 0:02:52]} 8. Nc3 {[%clk 0:02:55.4]}
8... Bb7 {[%clk 0:02:51.6]} 9. e3 {[%clk 0:02:45.9]} 9... d5 {[%clk 0:02:38.3]}
10. Nxd5 {[%clk 0:02:42.1]} 10... Nxd5 {[%clk 0:02:38.1]} 11. Bxg7 {[%clk
0:02:43]} 11... Nxe3 {[%clk 0:02:32.8]} 12. dxe3 {[%clk 0:02:40]} 12... Kxg7
{[%clk 0:02:31]} 13. Qe2 {[%clk 0:02:39.4]} 13... Qc7 {[%clk 0:02:30.4]} 14. h4
{[%clk 0:02:36.4]} 14... Rad8 {[%clk 0:02:23.5]} 15. h5 {[%clk 0:02:33.8]} 15...
Ne5 {[%clk 0:02:11.1]} 16. h6+ {[%clk 0:02:33.2]} 16... Kxh6 {[%clk 0:02:01.6]}
17. Nxe5 {[%clk 0:02:31.9]} 17... Bxg2 {[%clk 0:01:56.9]} 18. Ng4+ {[%clk
0:02:32]} 1-0

[Event "*** SCC Grand Prix: Titled Tuesday Blitz"]
[Site "Chess.com"]
[Date "2020.08.11"]
[Round "10"]
[White "beatnoguera"]
[Black "NotFischer"]
[Result "0-1"]
[WhiteElo "1817"]
[BlackElo "2096"]
[TimeControl "180+1"]
[EndTime "11:53:10 PDT"]
[Termination "NotFischer won by resignation"]

1. e4 {[%clk 0:03:00.9]} 1... d5 {[%clk 0:02:59.7]} 2. exd5 {[%clk 0:03:00.3]}
2... Nf6 {[%clk 0:03:00.3]} 3. d4 {[%clk 0:02:59.3]} 3... Bg4 {[%clk 0:02:59.8]}
4. f3 {[%clk 0:02:58.2]} 4... Bf5 {[%clk 0:02:59.5]} 5. c4 {[%clk 0:02:57.4]}
5... e6 {[%clk 0:02:59.2]} 6. dxe6 {[%clk 0:02:57.1]} 6... Nc6 {[%clk
0:02:59.8]} 7. exf7+ {[%clk 0:02:53.6]} 7... Kxf7 {[%clk 0:03:00.7]} 8. d5
{[%clk 0:02:52.8]} 8... Nb4 {[%clk 0:02:57.8]} 9. Na3 {[%clk 0:02:53]} 9... Bc5
{[%clk 0:02:56.7]} 10. Bd2 {[%clk 0:02:41.7]} 10... Re8+ {[%clk 0:02:53.5]} 11.
Be2 {[%clk 0:02:37.4]} 11... Nd3+ {[%clk 0:02:53.1]} 12. Kf1 {[%clk 0:02:37.8]}
12... Nf2 {[%clk 0:02:44.9]} 13. Qc1 {[%clk 0:02:26.1]} 13... Nxh1 {[%clk
0:02:44.6]} 14. b4 {[%clk 0:02:23.6]} 14... Bxg1 {[%clk 0:02:43.6]} 15. Kxg1
{[%clk 0:02:23.3]} 15... Rxe2 {[%clk 0:02:42.8]} 16. Kxh1 {[%clk 0:02:22.8]}
16... Qe7 {[%clk 0:02:32.4]} 17. Bg5 {[%clk 0:02:22.1]} 17... Re8 {[%clk
0:02:30.1]} 18. Bh4 {[%clk 0:02:20.2]} 18... h6 {[%clk 0:02:17.4]} 19. h3 {[%clk
0:02:19.8]} 19... g5 {[%clk 0:02:16]} 20. Bg3 {[%clk 0:02:14.5]} 20... Nh5
{[%clk 0:02:15.9]} 21. Kh2 {[%clk 0:02:08.8]} 21... Nxg3 {[%clk 0:02:15.5]} 0-1